bitfinex-derivatives/quotes_ETHF0:USTF0_20250422
["timestamp","ask_amount","ask_price","bid_price","bid_amount"]
[1745332756277,18.92874946,1650.6,1650.5,3.39310718]
[1745332756771,17.71745946,1650.6,1650.5,3.39310718]
[1745332756973,24.73845946,1650.6,1650.5,3.39310718]
[1745332758078,12.71745946,1650.6,1650.5,4.60446718]
[1745332758674,12.71745946,1650.6,1650.5,3.39310718]
[1745332759373,16.26035946,1650.6,1650.5,3.39310718]
[1745332759773,10.09021946,1650.6,1650.5,3.39310718]
[1745332760169,10.09021946,1650.6,1650.5,6.79930718]
[1745332760767,15.09021946,1650.6,1650.5,3.39310718]
[1745332760967,10.09021946,1650.6,1650.5,3.39310718]
[1745332761168,13.43661946,1650.6,1650.5,3.39310718]
[1745332761370,10.09021946,1650.6,1650.5,4.60446718]
[1745332761572,10.09021946,1650.6,1650.5,0.00910718]
[1745332761773,10.09021946,1650.6,1650.5,1.22046718]
[1745332762370,3.69476,1650.6,1650.5,3.21690718]
[1745332762782,3.69476,1650.6,1650.5,86.12656718]
[1745332763282,3.48367874,1650.8,1650.5,84.91520718]
[1745332763577,6.70439171,1650.7,1650.5,86.12654718]
[1745332763772,1.21129,1650.6,1650.5,78.23910718]
[1745332763978,4.68899,1650.6,1650.5,78.23910718]
[1745332764181,22.71538171,1650.6,1650.5,78.23910718]
[1745332765679,16.50409171,1650.6,1650.5,78.23910718]
[1745332766071,17.71538171,1650.6,1650.5,78.23910718]
[1745332766379,21.50409171,1650.6,1650.5,78.23910718]
[1745332766580,22.71538171,1650.6,1650.5,78.23910718]
[1745332766776,21.50409171,1650.6,1650.5,78.23910718]
[1745332767076,22.71538171,1650.6,1650.5,78.23910718]
[1745332769583,21.50409171,1650.6,1650.5,78.23910718]
[1745332769876,22.71538171,1650.6,1650.5,78.23910718]
[1745332770478,16.50409171,1650.6,1650.5,78.23910718]
[1745332770787,13.02639171,1650.6,1650.5,78.23910718]
[1745332771372,14.23768171,1650.6,1650.5,78.23910718]
[1745332771577,16.49079171,1650.6,1650.5,78.23910718]
[1745332771769,19.69859171,1650.6,1650.5,78.23910718]
[1745332771973,16.49079171,1650.6,1650.5,78.23910718]
[1745332772173,13.02639171,1650.6,1650.5,78.23910718]
[1745332772779,13.02639171,1650.6,1650.5,81.62530718]
[1745332773185,16.23419171,1650.6,1650.5,81.62530718]
[1745332773485,19.59609171,1650.6,1650.5,81.62530718]
[1745332773784,13.02639171,1650.6,1650.5,81.62530718]
[1745332774581,16.23419171,1650.6,1650.5,81.62530718]
[1745332774886,6.322,1650.6,1650.5,91.04446718]
[1745332775381,0.00597874,1650.8,1650.7,1.21121]
[1745332776478,0.00597874,1650.8,1650.7,4.41901]
[1745332779287,6.32797874,1650.8,1650.7,4.41901]
[1745332780284,6.32797874,1650.8,1650.5,84.83310718]
[1745332780588,1.21129,1650.6,1650.5,81.62530718]
[1745332780991,7.99751916,1650.6,1650.5,81.62530718]
[1745332781481,6.78622916,1650.6,1650.5,81.62530718]
[1745332782288,13.10822916,1650.6,1650.5,81.62530718]
[1745332782485,13.10822916,1650.6,1650.5,82.83666718]
[1745332782682,13.10822916,1650.6,1650.5,79.45366718]
[1745332782881,13.10822916,1650.6,1650.5,82.78466718]
[1745332783183,6.78622916,1650.6,1650.5,82.78466718]
[1745332783581,13.19983888,1650.7,1650.5,82.78466718]
[1745332783783,6.322,1650.7,1650.6,1.21129]
[1745332784086,13.19983888,1650.7,1650.6,1.21129]
[1745332784294,6.87783888,1650.7,1650.6,1.21129]
[1745332784480,4.42494874,1650.8,1650.5,81.57330718]
[1745332784685,6.80559219,1650.7,1650.5,81.57330718]
[1745332785083,8.01683219,1650.7,1650.5,81.57330718]
[1745332785482,6.80559219,1650.7,1650.5,81.57330718]
[1745332785687,1.21129,1650.6,1650.5,81.57330718]
[1745332785883,1.21129,1650.6,1650.5,78.24230718]
[1745332786084,7.74617073,1650.6,1650.5,81.57330718]
[1745332786791,6.53488073,1650.6,1650.5,81.57330718]
[1745332787388,6.53488073,1650.6,1650.5,78.18710718]
[1745332787589,6.53488073,1650.6,1650.5,81.42030718]
[1745332788189,6.53488073,1650.6,1650.5,84.62810718]
[1745332788394,0.00597874,1650.8,1650.5,84.62810718]
[1745332788693,6.47598476,1650.7,1650.5,81.42030718]
[1745332788989,4.51347,1650.7,1650.5,81.42030718]
[1745332789194,9.77818476,1650.7,1650.5,81.42030718]
[1745332789388,9.77818476,1650.7,1650.5,82.63166718]
[1745332789700,9.77818476,1650.7,1650.5,82.63164718]
[1745332790390,10.98940476,1650.7,1650.5,81.42030718]
[1745332790796,6.47598476,1650.7,1650.5,81.42030718]
[1745332790992,9.88878476,1650.7,1650.5,82.63163718]
[1745332792197,16.21078476,1650.7,1650.5,82.63163718]
[1745332792999,17.42200476,1650.7,1650.5,81.42030718]
[1745332793296,11.10000476,1650.7,1650.5,81.42030718]
[1745332793699,9.88878476,1650.7,1650.5,81.42030718]
[1745332793890,11.10003476,1650.7,1650.5,81.42030718]
[1745332794093,11.10005476,1650.7,1650.5,81.42030718]
[1745332794292,17.42205476,1650.7,1650.5,81.42030718]
[1745332794711,12.79798476,1650.7,1650.5,81.42030718]
[1745332794903,12.79798476,1650.7,1650.5,82.63162718]
[1745332795109,12.79798476,1650.7,1650.5,81.42030718]
[1745332795316,6.47598476,1650.7,1650.5,81.42030718]
[1745332795611,7.68720476,1650.7,1650.5,81.42030718]
[1745332795805,6.47598476,1650.7,1650.6,1.21129]
[1745332796009,6.32797874,1650.8,1650.7,1.21121]
[1745332796216,0.00597874,1650.8,1650.7,9.72551]
[1745332796415,0.00597874,1650.8,1650.7,13.27041]
[1745332797114,6.32797874,1650.8,1650.7,13.27041]
[1745332797812,4.24524874,1650.8,1650.7,13.27041]
[1745332798517,1.69296874,1650.8,1650.7,13.27041]
[1745332798710,4.41845,1651.5,1651.3,1.21073]
[1745332798910,4.41845,1651.5,1651.4,6.8015]
[1745332799423,6.93599878,1651.5,1651.4,8.0122]
[1745332799611,6.93599878,1651.5,1651.4,11.22]
[1745332799812,6.93599878,1651.5,1651.4,86.04]
[1745332800314,13.25799878,1651.5,1651.4,86.04]
[1745332801413,6.322,1651.5,1651.4,86.04]
[1745332801619,6.322,1651.5,1651.4,91.04]
[1745332805016,2.98737,1651.5,1651.4,91.04]
[1745332805226,4.7529,1652.1,1652.0,1.21026]
[1745332805421,3.5427,1652.1,1652.0,4.52126]
[1745332805622,10.18036923,1652.1,1652.0,4.52126]
[1745332805824,11.39055923,1652.1,1652.0,4.52126]
[1745332806020,10.18036923,1652.1,1652.0,8.10616]
[1745332806323,11.39055923,1652.1,1652.0,8.10616]
[1745332806623,6.63766923,1652.1,1652.0,8.10616]
[1745332806822,6.63766923,1652.1,1652.0,6.8959]
[1745332807117,6.21019,1652.1,1652.0,3.311]
[1745332807323,9.41799,1652.1,1652.0,3.311]
[1745332807516,19.82171325,1652.1,1652.0,3.311]
[1745332808220,26.14371325,1652.1,1652.0,3.311]
[1745332808416,24.93352325,1652.1,1652.0,1.35607963]
[1745332808622,26.14371325,1652.1,1652.0,1.35607963]
[1745332810126,1.21026,1652.0,1651.9,3.31907963]
[1745332810318,1.21063,1651.5,1651.4,74.82]
[1745332810629,11.43651921,1651.5,1651.4,3.31]
[1745332810817,16.43651921,1651.5,1651.4,3.31]
[1745332812528,10.22588921,1651.5,1651.4,3.31]
[1745332812713,7.01808921,1651.5,1651.4,3.31]
[1745332812915,7.01808921,1651.5,1651.4,6.5711]
[1745332813230,11.0327946,1651.6,1651.4,6.5711]
[1745332813431,4.59153,1651.5,1651.4,3.31]
[1745332813622,14.58482885,1651.5,1651.4,3.31]
[1745332813825,13.37419885,1651.5,1651.4,3.31]
[1745332814731,13.37419885,1651.5,1651.4,6.6707]
[1745332814930,14.58482885,1651.5,1651.4,3.31]
[1745332815435,6.47949885,1651.5,1651.4,4.5207]
[1745332815632,6.47949885,1651.5,1651.4,7.8814]
[1745332815833,1.21057,1651.6,1651.4,6.6707]
[1745332816130,13.34252073,1651.6,1651.5,1.21063]
[1745332816427,6.322,1651.6,1651.5,4.57133]
[1745332816736,1.21025,1652.1,1651.7,1.21047]
[1745332816922,4.41806,1652.0,1651.8,6.6717]
[1745332817123,11.63646529,1652.1,1651.8,6.6717]
[1745332817325,6.90031529,1651.9,1651.8,7.88211]
[1745332817529,6.90031529,1651.9,1651.8,6.6717]
[1745332817728,9.69325189,1652.0,1651.8,6.6717]
[1745332817925,3.5259,1652.1,1651.9,3.4064]
[1745332818128,6.88418774,1652.2,1652.0,1.2102]
[1745332818329,6.88418774,1652.2,1652.1,3.4064]
[1745332818832,10.27201105,1652.2,1652.1,3.4064]
[1745332819431,6.72751105,1652.2,1652.1,4.61659]
[1745332819930,4.46551105,1652.2,1652.1,9.61659]
[1745332820131,3.2078,1652.6,1652.1,9.61654]
[1745332820334,4.6434,1652.5,1652.2,6.7412]
[1745332820534,6.71097961,1652.5,1652.4,4.41777]
[1745332820734,6.71097961,1652.5,1652.4,1.20997]
[1745332821131,6.71097961,1652.5,1652.3,0.00907963]
[1745332821426,6.6413,1652.4,1651.6,3.31]
[1745332821629,4.65017,1652.3,1651.9,1.21029]
[1745332821830,3.4335,1652.2,1652.0,9.948]
[1745332822037,3.4335,1652.2,1652.0,6.7402]
[1745332822334,6.56063441,1652.1,1652.0,11.15826]
[1745332822534,4.64345,1652.5,1652.0,11.15824]
[1745332822733,6.41460823,1652.3,1652.1,1.21018]
[1745332822930,3.4335,1652.5,1652.2,3.4302]
[1745332823434,6.41460823,1652.4,1652.2,3.4302]
[1745332823928,11.05217823,1652.4,1652.2,3.4302]
[1745332824135,1.21015,1652.2,1652.0,3.31]
[1745332824324,3.4276,1652.1,1652.0,3.31]
[1745332824524,10.37134777,1652.1,1652.0,6.6818]
[1745332824923,3.4276,1652.1,1652.0,6.6818]
[1745332825128,3.4276,1652.1,1651.9,74.78307963]
[1745332825129,1.21026,1652.0,1651.9,74.78307963]
[1745332825330,11.34416,1652.0,1651.9,78.09307963]
[1745332825529,21.53890212,1652.0,1651.9,78.09307963]
[1745332825933,26.53890212,1652.0,1651.9,72.82815926]
[1745332826238,26.53890212,1652.0,1651.9,9.63e-06]
[1745332826538,1.21055,1651.6,1651.5,3.31]
[1745332826831,1.21074,1651.4,1651.1,3.31]
[1745332827033,1.21085,1651.2,1651.1,3.31]
[1745332827230,10.06146767,1651.3,1651.1,3.31]
[1745332827429,6.56066767,1651.2,1651.1,3.31]
[1745332827635,6.64192476,1651.4,1651.3,1.21077]
[1745332827835,0.00907963,1651.4,1651.3,1.21077]
[1745332828031,0.00907963,1651.4,1651.1,13.3367]
[1745332828231,0.00907963,1651.4,1651.2,3.4536]
[1745332828941,0.00907963,1651.4,1651.2,4.66445]
[1745332829133,0.00907963,1651.4,1651.2,3.4536]
[1745332829641,6.8288218,1651.3,1651.2,4.66445]
[1745332830037,6.8288218,1651.3,1651.2,3.4536]
[1745332831238,14.8892918,1651.3,1651.2,3.4536]
[1745332831442,14.8892918,1651.3,1651.1,3.31]
[1745332831639,1.21085,1651.2,1651.1,6.7494]
[1745332831942,4.85275,1651.2,1651.1,3.31]
[1745332832244,16.28147937,1651.2,1651.1,3.31]
[1745332832439,10.07062937,1651.2,1651.1,3.31]
[1745332832634,10.07062937,1651.2,1651.1,6.9769]
[1745332832840,11.28147937,1651.2,1651.1,3.31]
[1745332833034,16.28147937,1651.2,1651.1,3.31]
[1745332834839,16.28147937,1651.2,1651.0,0.00907963]
[1745332834840,1.21092,1651.1,1651.0,0.00907963]
[1745332835039,11.51592,1651.1,1651.0,0.00907963]
[1745332835342,23.39211212,1651.1,1651.0,0.00907963]
[1745332835946,1.21151,1650.3,1649.5,3.2078]
[1745332836238,3.4708,1650.2,1649.9,3.5932]
[1745332836445,11.71293018,1650.2,1649.9,6.9032]
[1745332836631,11.71293018,1650.2,1649.9,3.31]
[1745332837046,10.51040981,1650.2,1649.9,3.31907963]
[1745332837447,10.51040981,1650.2,1650.0,6.9032]
[1745332837950,3.2078,1650.1,1650.0,6.9032]
[1745332838140,6.6786,1650.1,1649.9,0.00907963]
[1745332838344,13.50163467,1650.1,1649.9,0.00907963]
[1745332839448,14.71329467,1650.1,1649.9,0.00907963]
[1745332839651,1.21173,1650.0,1649.9,0.00907963]
[1745332839860,3.4098,1650.0,1649.9,0.00907963]
[1745332840047,11.57051189,1650.0,1649.9,0.00907963]
[1745332840256,10.35878189,1650.0,1649.9,0.00907963]
[1745332840749,10.35878189,1650.0,1649.9,3.32007963]
[1745332840952,6.94898189,1650.0,1649.9,3.32007963]
[1745332841346,6.94898189,1650.0,1649.9,12.73967963]
[1745332841647,0.00907963,1650.2,1650.1,1.21165]
[1745332842046,0.00907963,1650.2,1650.1,8.2078]
[1745332842248,0.00907963,1650.2,1650.1,6.21165]
[1745332843156,6.933,1650.6,1650.1,5.0]
[1745332843449,3.5214,1650.8,1650.2,6.7027]
[1745332843753,7.6307868,1650.7,1650.3,8.14608]
[1745332843954,4.41909,1650.6,1650.4,3.4949]
[1745332844245,1.21136,1650.5,1650.4,3.4949]
[1745332844451,11.1523268,1650.5,1650.4,3.4949]
[1745332844644,11.1523268,1650.5,1650.3,3.311]
[1745332844645,1.21143,1650.4,1650.3,3.311]
[1745332844847,4.77033,1650.4,1650.3,3.311]
[1745332845149,11.10791802,1650.4,1650.3,3.311]
[1745332845654,19.31571802,1650.4,1650.3,3.311]
[1745332845956,14.31571802,1650.4,1650.3,3.311]
[1745332846254,19.31577802,1650.4,1650.1,3.312]
[1745332846453,14.31577802,1650.4,1650.1,3.312]
[1745332846654,14.31573802,1650.4,1650.2,3.5004]
[1745332847356,13.10428802,1650.4,1650.2,3.5004]
[1745332847749,14.31573802,1650.4,1650.2,3.5004]
[1745332848149,13.10428802,1650.4,1650.2,3.5004]
[1745332848349,14.31575802,1650.4,1650.2,3.5004]
[1745332848843,13.10428802,1650.4,1650.2,3.5004]
[1745332849245,14.31572802,1650.4,1650.2,3.5004]
[1745332849645,13.10428802,1650.4,1650.2,3.5004]
[1745332850054,9.89648802,1650.4,1650.2,3.5004]
[1745332850456,14.31572802,1650.4,1650.2,3.5004]
[1745332851359,13.10428802,1650.4,1650.2,3.5004]
[1745332851556,14.31572802,1650.4,1650.2,3.5004]
[1745332851848,14.31574802,1650.4,1650.2,3.5004]
[1745332852250,13.10428802,1650.4,1650.2,3.5004]
[1745332852848,14.31573802,1650.4,1650.2,3.5004]
[1745332853757,13.10428802,1650.4,1650.2,3.5004]
[1745332854157,14.31572802,1650.4,1650.2,3.5004]
[1745332855349,9.54538802,1650.4,1650.2,3.5004]
[1745332855657,6.33758802,1650.4,1650.2,3.5004]
[1745332855848,9.54538802,1650.4,1650.2,3.5004]
[1745332856859,12.99478802,1650.4,1650.2,3.5004]
[1745332857062,14.20626802,1650.4,1650.2,3.5004]
[1745332857763,12.99478802,1650.4,1650.2,3.5004]
[1745332857962,9.78698802,1650.4,1650.2,3.5004]
[1745332858173,6.33758802,1650.4,1650.3,1.21151]
[1745332858363,0.00907963,1650.7,1650.5,1.21134]
[1745332858555,0.00907963,1650.7,1650.6,6.81]
[1745332858862,7.02952245,1650.7,1650.6,6.81]
[1745332860365,7.02952245,1650.7,1650.6,8.02129]
[1745332860555,0.00907963,1650.7,1650.6,19.82039]
[1745332860755,0.00907963,1650.7,1650.6,16.61259]
[1745332861160,1.65805179,1651.0,1650.6,16.61259]
[1745332861161,0.0144,1650.8,1650.7,1.21121]
[1745332861356,3.6141,1651.3,1650.9,1.21104]
[1745332861556,5.28801397,1651.3,1651.0,6.8337]
[1745332861758,6.95093127,1651.1,1651.0,8.04469]
[1745332861960,6.95093127,1651.2,1651.0,6.8337]
[1745332862160,5.28800397,1651.3,1651.0,6.8337]
[1745332862365,6.95093127,1651.2,1651.0,6.8337]
[1745332862853,8.16180127,1651.2,1651.0,6.8337]
[1745332863057,14.97090127,1651.2,1651.0,6.8337]
[1745332863866,13.76003127,1651.2,1651.0,6.8337]
[1745332864069,10.15873127,1651.2,1651.0,6.8337]
[1745332864268,6.95093127,1651.2,1651.1,1.21092]
[1745332864468,6.95093127,1651.2,1651.0,14.85138]
[1745332864667,6.95093127,1651.2,1651.0,10.4326]
[1745332864861,1.21092,1651.1,1651.0,6.8337]
[1745332865059,10.15873127,1651.2,1651.0,6.8337]
[1745332865265,6.4999232,1651.1,1651.0,6.8337]
[1745332865868,7.7108432,1651.1,1651.0,3.312]
[1745332866068,11.4948432,1651.1,1651.0,3.312]
[1745332866468,15.2581432,1651.1,1651.0,3.312]
[1745332867076,20.2581432,1651.1,1651.0,3.312]
[1745332867466,14.0472232,1651.1,1651.0,3.312]
[1745332867663,6.4999232,1651.1,1651.0,4.52299]
[1745332867870,0.4721936,1651.3,1651.0,11.5198]
[1745332868174,0.4721936,1651.3,1651.0,10.2086]
[1745332868374,0.4721936,1651.3,1651.0,11.41954]
[1745332868569,6.30561808,1651.2,1651.0,3.312]
[1745332868868,14.50826808,1651.2,1651.0,3.312]
[1745332869067,3.02731,1651.1,1650.5,3.311]
[1745332869274,3.2078,1650.9,1650.5,3.311]
[1745332869473,4.75286,1650.8,1650.5,3.311]
[1745332869671,10.0191851,1650.8,1650.5,3.311]
[1745332870470,6.4774851,1650.8,1650.5,3.32007963]
[1745332870666,6.4774851,1650.8,1650.7,1.21121]
[1745332871874,6.4774851,1650.8,1650.6,6.7768]
[1745332872174,1.21129,1650.6,1650.5,3.32007963]
[1745332872372,8.43257,1650.7,1650.5,3.32007963]
[1745332872575,7.93535311,1650.6,1650.5,3.32007963]
[1745332872777,4.74649,1650.6,1650.5,3.32007963]
[1745332873275,18.11344615,1650.6,1650.5,3.32007963]
[1745332874474,13.38845615,1650.6,1650.5,3.32007963]
[1745332874675,9.85325615,1650.6,1650.5,3.32007963]
[1745332874877,11.06454615,1650.6,1650.5,3.32007963]
[1745332875072,14.77804615,1650.6,1650.5,3.32007963]
[1745332876275,13.56675615,1650.6,1650.5,3.32007963]
[1745332876470,14.77804615,1650.6,1650.5,3.32007963]
[1745332876677,13.56675615,1650.6,1650.5,3.32007963]
[1745332876876,14.77804615,1650.6,1650.5,3.32007963]
[1745332877581,1.2115,1650.4,1650.3,3.311]
[1745332877776,3.2078,1650.4,1650.3,3.311]
[1745332878078,11.40911787,1650.4,1650.3,3.311]
[1745332878276,15.24671787,1650.4,1650.3,3.311]
[1745332878579,14.03528787,1650.4,1650.3,3.311]
[1745332879079,14.03528787,1650.4,1650.3,7.0083]
[1745332879479,14.03528787,1650.4,1650.3,3.311]
[1745332879685,10.19768787,1650.4,1650.3,3.311]
[1745332880272,6.98080824,1650.4,1650.3,12.73031]
[1745332880482,3.8043,1650.9,1650.7,1.21121]
[1745332880686,5.04862,1651.0,1650.8,3.312]
[1745332880878,7.26,1651.2,1651.0,1.21092]
[1745332881076,0.4721936,1651.3,1650.9,10.2013]
[1745332881274,6.81019149,1651.0,1650.9,6.9935]
[1745332881475,13.79629149,1651.2,1650.9,6.9935]
[1745332881783,7.4975,1651.2,1650.9,8.20455]
[1745332882079,6.35345083,1651.1,1650.9,6.9935]
[1745332882680,6.35345083,1651.1,1651.0,1.21099]
[1745332882982,6.35345083,1651.1,1651.0,8.10029]
[1745332883177,6.35345083,1651.1,1651.0,3.6815]
[1745332883683,1.21092,1651.1,1651.0,3.6815]
[1745332883984,10.39698821,1651.1,1651.0,3.6815]
[1745332884172,6.61868821,1651.1,1651.0,3.6815]
[1745332884572,1.21087,1651.2,1650.9,3.312]
[1745332884573,9.82648821,1651.2,1650.9,3.312]
[1745332884772,3.5251,1651.0,1650.9,3.312]
[1745332884975,7.94389,1651.0,1650.9,3.312]
[1745332885182,14.6005973,1651.0,1650.9,3.312]
[1745332886281,1.21113,1650.9,1650.6,3.6427]
[1745332886580,11.32074928,1650.8,1650.7,3.311]
[1745332886881,4.41894,1650.8,1650.7,3.311]
[1745332887079,9.41894,1650.8,1650.7,3.311]
[1745332887279,16.32074928,1650.8,1650.7,3.311]
[1745332887483,20.06824928,1650.8,1650.7,3.311]
[1745332887784,13.85710928,1650.8,1650.7,3.311]
[1745332888081,15.06824928,1650.8,1650.7,3.311]
[1745332892075,13.85710928,1650.8,1650.7,3.311]
[1745332892287,10.10960928,1650.8,1650.7,3.311]
[1745332892681,11.32074928,1650.8,1650.7,3.311]
[1745332892882,14.87264928,1650.8,1650.7,3.311]
[1745332894684,13.66150928,1650.8,1650.7,3.311]
[1745332895081,14.87264928,1650.8,1650.7,3.311]
[1745332895490,1.21121,1650.7,1650.6,3.311]
[1745332895785,8.42051,1650.7,1650.6,1.35]
[1745332895985,15.02061747,1650.7,1650.6,1.35]
[1745332897082,20.02061747,1650.7,1650.6,1.35]
[1745332897978,15.02061747,1650.7,1650.6,1.35]
[1745332898890,20.02061747,1650.7,1650.6,1.35]
[1745332899586,15.02061747,1650.7,1650.6,1.35]
[1745332900189,20.02061747,1650.7,1650.6,1.35]
[1745332900890,13.80940747,1650.7,1650.3,3.311]
[1745332901090,13.80940747,1650.7,1650.4,3.5378]
[1745332901285,4.41916,1650.5,1650.4,3.5378]
[1745332901682,10.77035887,1650.5,1650.4,3.5378]
[1745332901885,9.55899887,1650.5,1650.3,3.311]
[1745332902188,10.77039887,1650.5,1650.3,6.8488]
[1745332902384,3.6325,1650.4,1650.3,6.8488]
[1745332902684,9.98742112,1650.4,1650.3,6.8488]
[1745332903090,11.19885112,1650.4,1650.3,6.8488]
[1745332903490,9.98742112,1650.4,1650.3,6.8488]
[1745332903891,11.19885112,1650.4,1650.3,3.311]
[1745332905285,9.98742112,1650.4,1650.3,3.311]
[1745332905490,11.19885112,1650.4,1650.3,3.311]
[1745332907086,9.98742112,1650.4,1650.3,3.311]
[1745332907393,11.19885112,1650.4,1650.3,7.1107]
[1745332907791,9.98742112,1650.4,1650.3,7.1107]
[1745332908096,6.35492112,1650.4,1650.3,7.1107]
[1745332908686,11.31505112,1650.4,1650.3,3.311]
[1745332909385,6.35492112,1650.4,1650.3,3.311]
[1745332909585,7.56635112,1650.4,1650.3,7.2]
[1745332909991,11.31505112,1650.4,1650.3,7.2]
[1745332910391,11.31505112,1650.4,1650.3,3.311]
[1745332911095,1.21173,1650.0,1649.9,11.0379]
[1745332911293,4.41953,1650.0,1649.9,7.2]
[1745332911489,10.90603932,1650.0,1649.9,3.311]
[1745332911889,1.21195,1649.7,1649.6,3.311]
[1745332912291,8.04527399,1649.7,1649.6,3.311]
[1745332912490,11.57337399,1649.7,1649.6,3.311]
[1745332913089,10.36142399,1649.7,1649.6,3.311]
[1745332913392,6.83332399,1649.7,1649.6,3.311]
[1745332913881,8.04527399,1649.7,1649.6,3.311]
[1745332914087,11.57337399,1649.7,1649.6,3.311]
[1745332915297,10.36142399,1649.7,1649.6,3.311]
[1745332915495,6.83332399,1649.7,1649.6,3.311]
[1745332916090,8.04527399,1649.7,1649.6,3.311]
[1745332917288,6.83332399,1649.7,1649.6,3.311]
[1745332917689,8.04527399,1649.7,1649.6,3.311]
[1745332918092,6.83332399,1649.7,1649.6,3.311]
[1745332918893,8.04527399,1649.7,1649.6,3.311]
[1745332919290,6.83332399,1649.7,1649.6,3.311]
[1745332919493,8.04527399,1649.7,1649.6,3.311]
[1745332920196,11.78407399,1649.7,1649.6,3.311]
[1745332920689,1.21202,1649.6,1649.5,0.00907963]
[1745332920883,8.14682,1649.6,1649.5,3.56017963]
[1745332921196,9.82676287,1649.6,1649.5,3.56017963]
[1745332922897,6.61896287,1649.6,1649.5,3.56017963]
[1745332923299,3.2078,1649.6,1649.5,3.56017963]
[1745332923593,9.93913426,1649.6,1649.5,3.56017963]
[1745332923893,11.61245475,1649.6,1649.5,3.56017963]
[1745332924098,15.43825475,1649.6,1649.5,0.00907963]
[1745332926397,14.22623475,1649.6,1649.5,0.00907963]
[1745332926698,15.43825475,1649.6,1649.5,0.00907963]
[1745332928593,10.40043475,1649.6,1649.5,0.00907963]
[1745332929198,11.61245475,1649.6,1649.5,0.00907963]
[1745332929399,15.29295475,1649.6,1649.5,0.00907963]
[1745332934098,10.40043475,1649.6,1649.5,0.00907963]
[1745332934297,11.61245475,1649.6,1649.5,0.00907963]
[1745332934494,15.14985475,1649.6,1649.5,0.00907963]
[1745332934803,13.93783475,1649.6,1649.5,0.00907963]
[1745332934995,15.14985475,1649.6,1649.5,0.00907963]
[1745332935600,13.93783475,1649.6,1649.5,0.00907963]
[1745332935795,7.19263475,1649.6,1649.5,1.22117963]
[1745332936000,6.73133426,1649.6,1649.5,5.00907963]
[1745332936498,3.2078,1649.6,1649.5,8.57357963]
[1745332936699,4.94366963,1649.8,1649.5,8.57357963]
[1745332936896,3.73177963,1649.8,1649.6,6.8755]
[1745332937090,10.89003204,1649.7,1649.6,3.311]
[1745332940201,14.66273204,1649.7,1649.6,3.311]
[1745332940800,9.67808204,1649.7,1649.6,3.311]
[1745332941204,6.47028204,1649.7,1649.6,9.52302]
[1745332941397,6.47028204,1649.7,1649.6,16.87542]
[1745332942402,3.2078,1650.1,1649.7,1.21195]
[1745332942604,3.2078,1650.3,1649.8,3.0297]
[1745332942907,6.59650803,1650.2,1650.1,1.2116]
[1745332943104,6.59650803,1650.2,1650.1,4.5216]
[1745332943303,7.80804803,1650.3,1650.1,3.31]
[1745332943499,1.21152,1650.3,1650.1,3.31]
[1745332943900,6.67318243,1650.2,1650.1,3.31]
[1745332944205,4.42835963,1650.4,1650.1,4.52165]
[1745332944407,7.88470243,1650.3,1650.1,3.31]
[1745332944599,1.21152,1650.3,1650.1,3.31]
[1745332944800,6.60063765,1650.2,1650.1,3.31]
[1745332945208,6.60063765,1650.2,1650.1,4.52165]
[1745332945407,0.45214813,1650.2,1650.1,4.5216]
[1745332945599,3.21687963,1650.4,1650.1,3.31]
[1745332945801,6.60063765,1650.2,1650.1,4.52161]
[1745332945997,6.721884,1650.3,1650.1,3.31]
[1745332946201,3.21687963,1650.4,1650.1,4.52159]
[1745332946507,6.721884,1650.3,1650.1,4.52165]
[1745332946707,7.16568981,1650.3,1650.1,4.52165]
[1745332946902,0.00907963,1650.4,1650.2,3.2078]
[1745332947106,3.2078,1651.1,1650.3,3.02878]
[1745332947305,13.962,1651.3,1650.6,4.41909]
[1745332947507,6.34970855,1651.0,1650.8,1.21112]
[1745332947707,0.44612487,1651.0,1650.9,3.4972]
[1745332947903,6.87604709,1651.1,1650.9,3.4972]
[1745332948102,6.87604709,1651.0,1650.9,3.4972]
[1745332948303,0.00907963,1651.2,1650.9,4.70825]
[1745332948506,6.87604709,1651.1,1650.9,4.70825]
[1745332948706,0.00907963,1651.2,1650.9,4.70825]
[1745332948913,6.92339367,1651.1,1650.9,4.70825]
[1745332949611,6.92339367,1651.1,1650.9,3.4972]
[1745332950214,14.41115916,1651.1,1650.9,3.4972]
[1745332950402,14.41115916,1651.1,1651.0,3.4912]
[1745332951410,10.58845916,1651.1,1651.0,3.4912]
[1745332952309,7.38065916,1651.1,1651.0,3.4912]
[1745332952502,6.92339367,1651.1,1651.0,9.70219]
[1745332952703,0.00907963,1651.2,1651.1,1.21092]
[1745332952906,0.00907963,1651.2,1651.1,12.16072]
[1745332953106,6.57412749,1651.2,1651.1,12.16072]
[1745332953808,6.57412749,1651.2,1651.1,17.16072]
[1745332954111,0.00907963,1651.2,1651.1,17.16072]
[1745332957509,0.00907963,1651.2,1651.1,12.16072]
[1745332958723,6.23192,1652.9,1651.5,3.0264]
[1745332958915,3.02476,1652.5,1651.8,4.41814]
[1745332959219,6.72776713,1652.0,1651.9,3.304]
[1745332959410,1.65436682,1652.1,1651.9,3.304]
[1745332959614,3.8388,1652.0,1651.9,3.304]
[1745332959821,10.56656713,1652.0,1651.9,3.304]
[1745332960615,12.20304963,1652.2,1651.9,3.304]
[1745332960616,0.00907963,1652.2,1651.9,3.304]
[1745332960821,1.21922963,1652.2,1651.9,3.304]
[1745332961018,6.57395723,1652.0,1651.9,3.304]
[1745332961213,12.33234569,1652.1,1651.9,3.304]
[1745332961419,4.0853,1652.0,1651.9,3.304]
[1745332961617,10.65925723,1652.0,1651.9,3.304]
[1745332962616,10.65925723,1652.0,1651.8,0.00907963]
[1745332962617,1.21033,1651.9,1651.8,0.00907963]
[1745332962815,12.74933,1651.9,1651.8,0.00907963]
[1745332963016,19.5423088,1651.9,1651.8,0.00907963]
[1745332963227,1.21048,1651.7,1651.6,78.127]
[1745332963430,5.19146,1651.8,1651.6,78.127]
[1745332963724,10.7739788,1651.7,1651.6,78.127]
[1745332963936,11.9844588,1651.7,1651.6,78.127]
[1745332965030,10.7739788,1651.7,1651.6,78.127]